Workbook

Sheet calculator venituri
B1: 2017 | E1: 2018
E2: Acelasi BRUT | H2: Acelasi NET | K2: Aceleasi Cheltuieli
A3: SALARIU BRUT | B3: 4000 | E3: =VenitBrut2017 -> 4000 | G3: =E3-VenitBrut2017 -> 0 | H3: 4797 | J3: =VenitBrut2018_1-VenitBrut2017 -> 797 | K3: 4803 | M3: =VenitBrut2018_2-VenitBrut2017 -> 803
A5: Persoane in intretinere | B5: 0 | E5: =PersoaneIntretinere -> 0 | H5: =PersoaneIntretinere -> 0 | K5: =PersoaneIntretinere -> 0
C8: RON | F8: RON | I8: RON | L8: RON
A9: Venit net | C9: =B3-SUM(C14:C16) -> 3340 | F9: =E3-SUM(F14:F16) -> 2600 | I9: =H3-SUM(I14:I16) -> 3118 | L9: =K3-SUM(L14:L16) -> 3122
A10: Deducere personala | C10: =IF(B3<=3000,IF(B3<=1500,IF(B5<4,300+B5*100,800),ROUNDUP((IF(B5<4,300+B5*100,800)*(1-(B3-1500)/1500))/10,0)*10),0) -> 0 | F10: =IF(E3<=3600,VLOOKUP(E3,deduceri!$A$3:$G$36,3+IF(E5<=4,E5,4),1),0) -> 0 | I10: =IF(H3<=3600,VLOOKUP(H3,deduceri!$A$3:$G$36,3+IF(H5<=4,H5,4),1),0) -> 0 | L10: =IF(K3<=3600,VLOOKUP(K3,deduceri!$A$3:$G$36,3+IF(K5<=4,K5,4),1),0) -> 0
A11: Venit impozabil | C11: =C9-C10 -> 3340 | F11: =IF(F9-F10<0,0,F9-F10) -> 2600 | I11: =IF(I9-I10<0,0,I9-I10) -> 3118 | L11: =IF(L9-L10<0,0,L9-L10) -> 3122
A13: CONTRIBUTII SALARIAT | B13: Procent | C13: RON | E13: Procent | F13: RON | H13: Procent | I13: RON | K13: Procent | L13: RON
A14: Contributie somaj | B14: 0.005 | C14: =ROUND(B3*B14,0) -> 20 | E14: 0 | F14: =ROUND(E3*E14,0) -> 0 | H14: 0 | I14: =ROUND(H3*H14,0) -> 0 | K14: 0 | L14: =ROUND(K3*K14,0) -> 0
A15: Contributie pensii | B15: 0.105 | C15: =ROUND(B3*B15,0) -> 420 | E15: 0.25 | F15: =ROUND(E3*E15,0) -> 1000 | H15: 0.25 | I15: =ROUND(H3*H15,0) -> 1199 | K15: 0.25 | L15: =ROUND(K3*K15,0) -> 1201
A16: Contributie sanatate | B16: 0.055 | C16: =ROUND(B3*B16,0) -> 220 | E16: 0.1 | F16: =ROUND(E3*E16,0) -> 400 | H16: 0.1 | I16: =ROUND(H3*H16,0) -> 480 | K16: 0.1 | L16: =ROUND(K3*K16,0) -> 480
A17: Impozit | B17: 0.16 | C17: =ROUND(C11*B17,0) -> 534 | E17: 0.1 | F17: =ROUND(F11*E17,0) -> 260 | H17: 0.1 | I17: =ROUND(I11*H17,0) -> 312 | K17: 0.1 | L17: =ROUND(L11*K17,0) -> 312
A18: TOTAL CONTRIBUTII SALARIAT | C18: =SUM(C14:C17) -> 1194 | F18: =SUM(F14:F17) -> 1660 | I18: =SUM(I14:I17) -> 1991 | L18: =SUM(L14:L17) -> 1993
A20: CONTRIBUTII SOCIETATE | B20: Procent | C20: RON | E20: Procent | F20: RON | H20: Procent | I20: RON | K20: Procent | L20: RON
A21: Contributie somaj | B21: 0.005 | C21: =ROUND(B3*B21,0) -> 20 | E21: 0 | F21: =ROUND(E3*E21,0) -> 0 | H21: 0 | I21: =ROUND(H3*H21,0) -> 0 | K21: 0 | L21: =ROUND(K3*K21,0) -> 0
A22: Contributie sanatate | B22: 0.052 | C22: =ROUND(B3*B22,0) -> 208 | E22: 0 | F22: =ROUND(E3*E22,0) -> 0 | H22: 0 | I22: =ROUND(H3*H22,0) -> 0 | K22: 0 | L22: =ROUND(K3*K22,0) -> 0
A23: Contributie pensii | B23: 0.158 | C23: =ROUND(B3*B23,0) -> 632 | E23: 0 | F23: =ROUND(E3*E23,0) -> 0 | H23: 0 | I23: =ROUND(H3*H23,0) -> 0 | K23: 0 | L23: =ROUND(K3*K23,0) -> 0
A24: Contributie concedii si indemnizatii | B24: 0.0085 | C24: =ROUND(B3*B24,0) -> 34 | E24: 0 | F24: =ROUND(E3*E24,0) -> 0 | H24: 0 | I24: =ROUND(H3*H24,0) -> 0 | K24: 0 | L24: =ROUND(K3*K24,0) -> 0
A25: Fond asigurari accidente | B25: 0.00178 | C25: =ROUND(B3*B25,0) -> 7 | E25: 0 | F25: =ROUND(E3*E25,0) -> 0 | H25: 0 | I25: =ROUND(H3*H25,0) -> 0 | K25: 0 | L25: =ROUND(K3*K25,0) -> 0
A26: Fond garantare creante salariale | B26: 0.0025 | C26: =ROUND(B3*B26,0) -> 10 | E26: 0 | F26: =ROUND(E3*E26,0) -> 0 | H26: 0 | I26: =ROUND(H3*H26,0) -> 0 | K26: 0 | L26: =ROUND(K3*K26,0) -> 0
A27: Contributia asiguratorie pentru munca | B27: 0 | C27: =ROUND(B3*B27,0) -> 0 | E27: 0.0225 | F27: =ROUND(E3*E27,0) -> 90 | H27: 0.0225 | I27: =ROUND(H3*H27,0) -> 108 | K27: 0.0225 | L27: =ROUND(K3*K27,0) -> 108
A28: TOTAL CONTRIBUTII SOCIETATE | C28: =SUM(C21:C27) -> 911 | F28: =SUM(F21:F27) -> 90 | I28: =SUM(I21:I27) -> 108 | L28: =SUM(L21:L27) -> 108
C30: RON | F30: RON | I30: RON | L30: RON
A31: SALARIU NET | C31: =B3-C18 -> 2806 | F31: =E3-F18 -> 2340 | G31: =F31-VenitNet2017 -> -466 | I31: =H3-I18 -> 2806 | J31: =I31-VenitNet2017 -> 0 | L31: =K3-L18 -> 2810 | M31: =L31-VenitNet2017 -> 4
A32: TOTAL CONTRIBUTII | C32: =C28+C18 -> 2105 | F32: =F28+F18 -> 1750 | G32: =F32-C32 -> -355 | I32: =I28+I18 -> 2099 | J32: =I32-C32 -> -6 | L32: =L28+L18 -> 2101 | M32: =L32-C32 -> -4
A33: TOTAL COST SOCIETATE | C33: =C32+C31 -> 4911 | F33: =F32+F31 -> 4090 | G33: =F33-C33 -> -821 | I33: =I32+I31 -> 4905 | J33: =I33-C33 -> -6 | L33: =L32+L31 -> 4911 | M33: =L33-C33 -> 0

Sheet deduceri
A1: Venit lunar brut | C1: Persoane aflate în întreținere
C2: 0 | D2: 1 | E2: 2 | F2: 3 | G2: 4
A3: 1 | B3: 1950 | C3: 510 | D3: 670 | E3: 830 | F3: 990 | G3: 1310
A4: 1951 | B4: 2000 | C4: 495 | D4: 655 | E4: 815 | F4: 975 | G4: 1295
A5: 2001 | B5: 2050 | C5: 480 | D5: 640 | E5: 800 | F5: 960 | G5: 1280
A6: 2051 | B6: 2100 | C6: 465 | D6: 625 | E6: 785 | F6: 945 | G6: 1265
A7: 2101 | B7: 2150 | C7: 450 | D7: 610 | E7: 770 | F7: 930 | G7: 1250
A8: 2151 | B8: 2200 | C8: 435 | D8: 595 | E8: 755 | F8: 915 | G8: 1235
A9: 2201 | B9: 2250 | C9: 420 | D9: 580 | E9: 740 | F9: 900 | G9: 1220
A10: 2251 | B10: 2300 | C10: 405 | D10: 565 | E10: 725 | F10: 885 | G10: 1205
A11: 2301 | B11: 2350 | C11: 390 | D11: 550 | E11: 710 | F11: 870 | G11: 1190
A12: 2351 | B12: 2400 | C12: 375 | D12: 535 | E12: 695 | F12: 855 | G12: 1175
A13: 2401 | B13: 2450 | C13: 360 | D13: 520 | E13: 680 | F13: 840 | G13: 1160
A14: 2451 | B14: 2500 | C14: 345 | D14: 505 | E14: 665 | F14: 825 | G14: 1145
A15: 2501 | B15: 2550 | C15: 330 | D15: 490 | E15: 650 | F15: 810 | G15: 1130
A16: 2551 | B16: 2600 | C16: 315 | D16: 475 | E16: 635 | F16: 795 | G16: 1115
A17: 2601 | B17: 2650 | C17: 300 | D17: 460 | E17: 620 | F17: 780 | G17: 1100
A18: 2651 | B18: 2700 | C18: 285 | D18: 445 | E18: 605 | F18: 765 | G18: 1085
A19: 2701 | B19: 2750 | C19: 270 | D19: 430 | E19: 590 | F19: 750 | G19: 1070
A20: 2751 | B20: 2800 | C20: 255 | D20: 415 | E20: 575 | F20: 735 | G20: 1055
A21: 2801 | B21: 2850 | C21: 240 | D21: 400 | E21: 560 | F21: 720 | G21: 1040
A22: 2851 | B22: 2900 | C22: 225 | D22: 385 | E22: 545 | F22: 705 | G22: 1025
A23: 2901 | B23: 2950 | C23: 210 | D23: 370 | E23: 530 | F23: 690 | G23: 1010
A24: 2951 | B24: 3000 | C24: 195 | D24: 355 | E24: 515 | F24: 675 | G24: 995
A25: 3001 | B25: 3050 | C25: 180 | D25: 340 | E25: 500 | F25: 660 | G25: 980
A26: 3051 | B26: 3100 | C26: 165 | D26: 325 | E26: 485 | F26: 645 | G26: 965
A27: 3101 | B27: 3150 | C27: 150 | D27: 310 | E27: 470 | F27: 630 | G27: 950
A28: 3151 | B28: 3200 | C28: 135 | D28: 295 | E28: 455 | F28: 615 | G28: 935
A29: 3201 | B29: 3250 | C29: 120 | D29: 280 | E29: 440 | F29: 600 | G29: 920
A30: 3251 | B30: 3300 | C30: 105 | D30: 265 | E30: 425 | F30: 585 | G30: 905
A31: 3301 | B31: 3350 | C31: 90 | D31: 250 | E31: 410 | F31: 570 | G31: 890
A32: 3351 | B32: 3400 | C32: 75 | D32: 235 | E32: 395 | F32: 555 | G32: 875
A33: 3401 | B33: 3450 | C33: 60 | D33: 220 | E33: 380 | F33: 540 | G33: 860
A34: 3451 | B34: 3500 | C34: 45 | D34: 205 | E34: 365 | F34: 525 | G34: 845
A35: 3501 | B35: 3550 | C35: 30 | D35: 190 | E35: 350 | F35: 510 | G35: 830
A36: 3551 | B36: 3600 | C36: 15 | D36: 175 | E36: 335 | F36: 495 | G36: 815
